{"text_format":"1","workbook":"xlsx","n_sheets":5,"sheets":["道徳評価文例一覧","自己評価シート","継続的にできたこと","キラリ場面","選択コメント"],"not_rendered":{"charts":0,"images":1,"macros":1,"external_links":0,"defined_names":1,"comments":0,"pivot_tables":0},"unopened":[],"bounds":{"document_bytes":16777216,"sheet_cells":100000,"rows_first":2000,"rows_last":500,"rows_between":2000,"halvings":0,"cell_chars":16384,"cell_head_chars":4096},"cells_cut":0,"cells_raw":0,"read":"whole","date_system":"1900"}

{"sheet":"道徳評価文例一覧","index":0,"n_rows":46,"n_cols":32,"rows_kept":46,"cut":false,"hidden":false,"merged":[[0,0,0,6]]}
[]
["ID","年","組","№","性","氏名","ふりがな","評価文例","の授業では、","を学び、","という意欲をもちました。","自己評価シートコメント","の授業で、","について","継続してできたこと","継続的にできたことコメント","特に","を学ぶ","の学習では、",null,"キラリ場面","コメント１","コメント2","選択コメント","①教材","②授業の選択","②～について","②継続したこと","③教材","③文末","④選択コメント１","④選択コメント２"]
[null,null,null,null,null,null,null,null,null,null,null,{"$f":"IF(OR(I3=\"\",J3=\"\",K3=\"\"),\"\",I3&$I$2&J3&$J$2&K3&$K$2)","v":""},null,null,null,{"$f":"IF(OR(M3=\"\",N3=\"\",O3=\"\"),\"\",M3&$M$2&N3&$N$2&O3&\"いました。\")","v":""},null,null,null,null,{"$f":"IF(OR(Q3=\"\",R3=\"\",S3=\"\",T3=\"\"),\"\",$Q$2&\"「\"&Q3&\"」\"&$R$2&\"「\"&R3&\"」\"&$S$2&S3&T3)","v":""},null,null,{"$f":"IF(OR(V3=\"\",W3=\"\"),\"\",V3&\"を通して\"&W3)","v":""}]
[null,null,null,null,null,null,null,null,null,null,null,"",null,null,null,"",null,null,null,null,"",null,null,""]
[null,null,null,null,null,null,null,null,null,null,null,"",null,null,null,"",null,null,null,null,"",null,null,""]
[null,null,null,null,null,null,null,null,null,null,null,"",null,null,null,"",null,null,null,null,"",null,null,""]
[null,null,null,null,null,null,null,null,null,null,null,"",null,null,null,"",null,null,null,null,"",null,null,""]
[null,null,null,null,null,null,null,null,null,null,null,"",null,null,null,"",null,null,null,null,"",null,null,""]
[null,null,null,null,null,null,null,null,null,null,null,"",null,null,null,"",null,null,null,null,"",null,null,""]
[null,null,null,null,null,null,null,null,null,null,null,"",null,null,null,"",null,null,null,null,"",null,null,""]
[null,null,null,null,null,null,null,null,null,null,null,"",null,null,null,"",null,null,null,null,"",null,null,""]
[null,null,null,null,null,null,null,null,null,null,null,"",null,null,null,"",null,null,null,null,"",null,null,""]
[null,null,null,null,null,null,null,null,null,null,null,"",null,null,null,"",null,null,null,null,"",null,null,""]
[null,null,null,null,null,null,null,null,null,null,null,"",null,null,null,"",null,null,null,null,"",null,null,""]
[null,null,null,null,null,null,null,null,null,null,null,"",null,null,null,"",null,null,null,null,"",null,null,""]
[null,null,null,null,null,null,null,null,null,null,null,"",null,null,null,"",null,null,null,null,"",null,null,""]
[null,null,null,null,null,null,null,null,null,null,null,"",null,null,null,"",null,null,null,null,"",null,null,""]
[null,null,null,null,null,null,null,null,null,null,null,"",null,null,null,"",null,null,null,null,"",null,null,""]
[null,null,null,null,null,null,null,null,null,null,null,"",null,null,null,"",null,null,null,null,"",null,null,""]
[null,null,null,null,null,null,null,null,null,null,null,"",null,null,null,"",null,null,null,null,"",null,null,""]
[null,null,null,null,null,null,null,null,null,null,null,"",null,null,null,"",null,null,null,null,"",null,null,""]
[null,null,null,null,null,null,null,null,null,null,null,"",null,null,null,"",null,null,null,null,"",null,null,""]
[null,null,null,null,null,null,null,null,null,null,null,"",null,null,null,"",null,null,null,null,"",null,null,""]
[null,null,null,null,null,null,null,null,null,null,null,"",null,null,null,"",null,null,null,null,"",null,null,""]
[null,null,null,null,null,null,null,null,null,null,null,"",null,null,null,"",null,null,null,null,"",null,null,""]
[null,null,null,null,null,null,null,null,null,null,null,"",null,null,null,"",null,null,null,null,"",null,null,""]
[null,null,null,null,null,null,null,null,null,null,null,"",null,null,null,"",null,null,null,null,"",null,null,""]
[null,null,null,null,null,null,null,null,null,null,null,"",null,null,null,"",null,null,null,null,"",null,null,""]
[null,null,null,null,null,null,null,null,null,null,null,"",null,null,null,"",null,null,null,null,"",null,null,""]
[null,null,null,null,null,null,null,null,null,null,null,"",null,null,null,"",null,null,null,null,"",null,null,""]
[null,null,null,null,null,null,null,null,null,null,null,"",null,null,null,"",null,null,null,null,"",null,null,""]
[null,null,null,null,null,null,null,null,null,null,null,"",null,null,null,"",null,null,null,null,"",null,null,""]
[null,null,null,null,null,null,null,null,null,null,null,"",null,null,null,"",null,null,null,null,"",null,null,""]
[null,null,null,null,null,null,null,null,null,null,null,"",null,null,null,"",null,null,null,null,"",null,null,""]
[null,null,null,null,null,null,null,null,null,null,null,"",null,null,null,"",null,null,null,null,"",null,null,""]
[null,null,null,null,null,null,null,null,null,null,null,"",null,null,null,"",null,null,null,null,"",null,null,""]
[null,null,null,null,null,null,null,null,null,null,null,"",null,null,null,"",null,null,null,null,"",null,null,""]
[null,null,null,null,null,null,null,null,null,null,null,"",null,null,null,"",null,null,null,null,"",null,null,""]
[null,null,null,null,null,null,null,null,null,null,null,"",null,null,null,"",null,null,null,null,"",null,null,""]
[null,null,null,null,null,null,null,null,null,null,null,"",null,null,null,"",null,null,null,null,"",null,null,""]
[null,null,null,null,null,null,null,null,null,null,null,"",null,null,null,"",null,null,null,null,"",null,null,""]
[null,null,null,null,null,null,null,null,null,null,null,"",null,null,null,"",null,null,null,null,"",null,null,""]
[null,null,null,null,null,null,null,null,null,null,null,"",null,null,null,"",null,null,null,null,"",null,null,""]
[null,null,null,null,null,null,null,null,null,null,null,"",null,null,null,"",null,null,null,null,"",null,null,""]
[null,null,null,null,null,null,null,null,null,null,null,"",null,null,null,"",null,null,null,null,"",null,null,""]
[null,null,null,null,null,null,null,null,null,null,null,"",null,null,null,"",null,null,null,null,"",null,null,""]

{"sheet":"自己評価シート","index":1,"n_rows":43,"n_cols":2,"rows_kept":43,"cut":false,"hidden":true,"merged":[]}
["番号","「の授業では」に続く教材名を入力する(最大35)"]
[1,"「どうせ無理」という言葉に負けない"]
[2,"本が泣いています"]
[3,"朝市の「おはようございます」"]
[4,"いじめに当たるのはどれだろう"]
[5,"傍観者でいいのか"]
[6,"風評被害"]
[7,"山に来る資格がない"]
[8,"SNSに友達の悪口を書くと"]
[9,"新しいプライド"]
[10,"父の手作りのベンチ"]
[11,"山岳民族の文化を守る"]
[12,"見えない親切"]
[13,"いのちって何だろう"]
[14,"決断！　骨髄バンク移植第一号"]
[15,"夕暮れどきの避難"]
[16,"金賞を目指して"]
[17,"私はここにいるー倉橋香衣"]
[18,"よごれた教科書"]
[19,"出会いーアンドロイドと不気味の谷"]
[20,"裏庭での出来事"]
[21,"ぼくのふるさと"]
[22,"思いやりの日々"]
[23,"ごみ箱をもっと増やして"]
[24,"銀色のシャープペンシル"]
[25,"私の「ふつう」と、あなたの「ふつう」"]
[26,"ぼくらの村の未来"]
[27,"靴"]
[28,"古都の雅、菓子の心"]
[29,"震災の中で"]
[30,"「看護する」仕事"]
[31,"火の島"]
[32,"自分の性格が大嫌い！"]
[33,"詩画にあしたをたくしてー星野富弘"]
[34,"郷土を彫る"]
[35,"いつわりのバイオリン"]
[36,"橋の上のおおかみ"]
[37,"海の豊かさを守ろう"]
[38,"2100年　未来の天気予報"]
[39,"おれ、よびだしになる"]
[40]
[41]
[42]

{"sheet":"継続的にできたこと","index":2,"n_rows":26,"n_cols":2,"rows_kept":26,"cut":false,"hidden":true,"merged":[]}
["番号","授業の選択 「の授業で」に続く形で入力"]
[1,"毎回"]
[2,"多く"]
[3,"　"]
[]
["番号","内容の選択「について」に続く形で入力"]
[1,"道徳的なテーマ"]
[2,"登場人物の思い"]
[3,"道徳的な問題"]
[4,"よりよく生きること"]
[5,"今後の自分の生活"]
[6,"今までの経験"]
[7,"自分の生き方"]
[8,"　"]
[]
["番号","様子の選択「いました」に続く形で入力"]
[1,"意欲的に発言して"]
[2,"考えを発言して"]
[3,"よく考えて発言して"]
[4,"意欲的に活動して"]
[5,"人の話をよく聞いて"]
[6,"意見をはっきりと伝えて"]
[7,"考えを丁寧にまとめて"]
[8,"他の人の意見を参考にして考えて"]
[9,"真剣に取り組んで"]
[10,"　"]

{"sheet":"キラリ場面","index":3,"n_rows":33,"n_cols":3,"rows_kept":33,"cut":false,"hidden":true,"merged":[[0,1,0,2],[1,2,5,2],[6,2,9,2],[10,2,18,2],[19,2,22,2]]}
["番号","内容項目の選択"]
[1,"自主、自律、自由と責任","A　主として自分自身に関すること"]
[2,"節度、節制"]
[3,"向上心、個性の伸長"]
[4,"希望と勇気、克己と強い意志"]
[5,"真理の探究、創造"]
[6,"思いやり、感謝","B　主として人との関わりに関すること"]
[7,"礼儀"]
[8,"友情、信頼"]
[9,"相互理解、寛容"]
[10,"遵法精神、公徳心","C　主として集団や社会との関わりに関すること"]
[11,"公正、公平、社会正義"]
[12,"社会参画、公共の精神"]
[13,"勤労"]
[14,"家族愛、家庭生活の充実"]
[15,"よりよい学校生活、集団生活の充実"]
[16,"郷土の伝統と文化の尊重、郷土を愛する態度"]
[17,"我が国の伝統と文化の尊重、国を愛する態度"]
[18,"国際理解、国際貢献"]
[19,"生命の尊さ","D　主として生命や自然、崇高なものとの関わりに関すること"]
[20,"自然愛護"]
[21,"感動、畏敬の念"]
[22,"よりよく生きる喜び"]
[]
["番号","見られたものの選択"]
[1,"という発言が見られました。"]
[2,"という姿が見られました。"]
[3,"という記述が見られました。"]
[4,"という考えをまとめました。"]
[5,"という考えをもちました。"]
[6,"に気付きました。"]
[7,"という意欲を見せました。"]
[8,"　"]

{"sheet":"選択コメント","index":4,"n_rows":18,"n_cols":2,"rows_kept":18,"cut":false,"hidden":true,"merged":[]}
["番号","授業の選択"]
[1,"対話活動"]
[2,"体験的な学習"]
[3,"教材について考えること"]
[4,"　"]
[]
["番号","授業の選択"]
[1,"新しい視点に気づきました。"]
[2,"自分について深く考えました。"]
[3,"気持ちの変化が見られました。"]
[4,"自分のこととして考えました。"]
[5,"今後の自分の行動に意欲を見せていました。"]
[6,"今までの自分を振り返ることができました。"]
[7,"〜のよさを感じ取りました。"]
[8,"〜しようという気持ちが高まりました。"]
[9,"〜することの大切さに気づきました。"]
[10,"〜したいという考えを深めました。"]
[11,"　"]